Cogmind - Beta 13 @@@ ROGUE MODE // 2024.04.04 @ 15:13:52 Player: Struisvogel Result: Self-destructed Performance ------------- Evolutions (1) 500 Regions Visited (2) 400 Robots Destroyed (21) 105 Value Destroyed (520) 520 Prototype IDs (0) 0 Alien Tech Used (0) 0 Bonus (0) 0 TOTAL SCORE: 1525 Bonus ------- None Cogmind --------- Core Integrity 368/400 Matter 181/300 Energy 89/100 System Corruption 0% Temperature Cool (54) Movement Walking (120) Location -9/Materials Parts ------- > --- POWER (2) -------- (None) > --- PROPULSION (3) --- Aluminum Leg Improved Aluminum Leg > --- UTILITY (2) ------ Small Storage Unit Utility Shielding > --- WEAPON (2) ------- Particle Gun > --- INVENTORY (8) ---- Utility Shielding Medium Armor Plating Small Laser Spread Laser Spread Laser Beam Cannon Light Assault Rifle Datajack Peak State ------------ > --- POWER ------------ Light Ion Engine Light Ion Engine > --- PROPULSION ------- Aluminum Leg > --- UTILITY ---------- Small Storage Unit Utility Shielding > --- WEAPON ----------- Beam Cannon Datajack > --- INVENTORY -------- Utility Shielding Medium Armor Plating Small Laser Spread Laser Spread Laser Light Assault Rifle Grenade Launcher [Rating: 8] Favorites ----------- Power Light Ion Engine Engine Light Ion Engine Propulsion Light Treads Treads Light Treads Leg Aluminum Leg Utility Small Storage Unit Storage Small Storage Unit Protection Utility Shielding Weapon Small Laser Energy Gun Small Laser Energy Cannon Beam Cannon Ballistic Gun Light Assault Rifle Launcher Grenade Launcher Special Melee Weapon Datajack Build | -11 -10 -9 ------- Run | Yrd Mat Mat Slots Evolved 2 | . . 2 Power 1 | . . 1 Propulsion 1 | . . 1 Utility . | . . . Weapon . | . . . Parts Attached 32 | 5 22 5 Power 7 | 1 5 1 Engine 7 | 1 5 1 Core . | . . . Reactor . | . . . Propulsion 11 | 2 8 1 Treads 3 | 2 1 . Leg 8 | . 7 1 Wheel . | . . . Hover . | . . . Flight . | . . . Utility 3 | 1 2 . Device . | . . . Storage 2 | 1 1 . Processor . | . . . Hackware . | . . . Protection 1 | . 1 . Artifact . | . . . Weapon 11 | 1 7 3 Energy Gun 5 | . 3 2 Energy Cannon 1 | . 1 . Ballistic Gun 1 | 1 . . Ballistic Cannon . | . . . Launcher 2 | . 1 1 Special Weapon . | . . . Impact Weapon . | . . . Slashing Weapon . | . . . Piercing Weapon . | . . . Special Melee Weapon 2 | . 2 . Unidentified Prototypes . | . . . Corrupted Parts 1 | . 1 . System Corruption 2 | . 2 . Parts Lost 13 | . 10 3 Power 4 | . 2 2 Propulsion 4 | . 4 . Utility 1 | . 1 . Weapon 4 | . 3 1 Highest Loss Streak 3 | . 3 2 To Critical Strikes . | . . . Average Slot Usage (%) 85 | . 87 67 Engine 12 | . 12 12 Treads 11 | . 13 . Leg 8 | . 8 11 Storage 20 | . 22 11 Protection 4 | . 3 11 Energy Gun 11 | . 12 4 Energy Cannon 5 | . 5 6 Ballistic Gun 4 | . 4 . Launcher 2 | . 2 3 Special Melee Weapon 3 | . 2 6 Naked Turns . | . . . Heaviest Build 16 | 9 15 16 Greatest Support 40 | 40 40 10 Greatest Overweight (x) 4 | . 4 1 Average Overweight (x) . | . . 1 Largest Inventory Capacity 8 | 8 8 8 Average Capacity 7 | 7 8 8 Most Carried 8 | 5 8 8 Average Carried 5 | 2 6 7 Final Capacity 8 | 8 8 8 Final Carried 8 | 5 8 8 Class Distribution -------------------- 100% | Mutant Dominant Class ---------------- Mutant | -10/Materials Mutant | -9/Materials Resources | -11 -10 -9 ----------- Run | Yrd Mat Mat Matter Collected 714 | 250 464 . Remotely . | . . . Salvage Created 617 | . 549 68 Parts 35 | . 29 6 Haulers Intercepted . | . . . Recyclers Shooed 3 | . 3 . Parts Field Recycled . | . . . Retrieved Matter . | . . . Parts Self-Destructed . | . . . Prevented . | . . . Kills | -11 -10 -9 ------- Run | Yrd Mat Mat Combat Hostiles Destroyed 14 | . 11 3 Guns 8 | . 7 1 Cannons 2 | . 2 . AOE 4 | . 2 2 Classes Destroyed 6 | . 6 . Worker 3 | . 3 . Recycler 2 | . 2 . Operator 1 | . 1 . Watcher 1 | . 1 . Swarmer 3 | . 3 . Grunt 11 | . 8 3 Best Kill Streak 8 | . 8 3 Combat Bots Only 3 | . 3 3 Max Kills in Single Turn 2 | . 2 2 Gunslinging 1 | . 1 . Exploded 1 | . 1 1 Melee . | . . . Uniques/NPCs Destroyed . | . . . Combat | -11 -10 -9 -------- Run | Yrd Mat Mat Hostile Shots Fired 154 | . 112 42 Missed 52 | . 37 15 Damage Taken 1645 | . 1377 268 Core 253 | . 221 32 Absorbed by Shields . | . . . Redirected to Shielding 5 | . . 5 Regen/Repaired (Parts) 89 | . 89 . Core Remaining (%) 55 | 100 11 . Volleys Fired 60 | . 54 6 Largest 2 | . 2 2 Hottest 95 | . 90 95 Shots Fired 112 | . 103 9 Gun 89 | . 83 6 Cannon 12 | . 12 . Launcher 11 | . 8 3 Special . | . . . Kinetic 20 | . 20 . Thermal 57 | . 51 6 Explosive 11 | . 8 3 Electromagnetic 24 | . 24 . Robot Hit Streak 7 | . 7 6 Robot Miss Streak 5 | . 5 3 Penetration Max . | . . . Secondary Targets 2 | . 2 . Max Gunslinging Chain 1 | . 1 . Shots Hit Robots 69 | . 63 6 Core Hits 37 | . 28 9 Critical Kills . | . . . Critical Parts Destroyed . | . . . Critical Strikes 1 | . . 1 Burn 1 | . . 1 Melee Attacks 8 | . 8 . Impact . | . . . Slashing . | . . . Piercing . | . . . Sneak Attacks 3 | . 3 . Combat Hostiles . | . . . Follow-up Attacks . | . . . Damage Inflicted 1374 | . 1148 226 Guns 562 | . 512 50 Cannons 136 | . 136 . Explosions 673 | . 497 176 Melee . | . . . Ramming 3 | . 3 . Kinetic 89 | . 89 . Thermal 537 | . 487 50 Explosive 574 | . 398 176 Electromagnetic 171 | . 171 . Impact . | . . . Slashing . | . . . Piercing . | . . . Highest Corruption 15 | . 15 . Average Corruption 11 | . 11 . Corruption Purged . | . . . Corruption Blocked . | . . . Effects 23 | . 23 . Message Errors 4 | . 4 . Matter Fused 5 | . 5 . Heat Flow Errors 3 | . 3 . Energy Discharges 4 | . 4 . Parts Rejected 1 | . 1 . Data Loss (minor) 4 | . 4 . Misfires 2 | . 2 . Overload Shots . | . . . Overflow Damage 7 | . 7 . Projectiles . | . . . Explosions 7 | . 7 . Melee . | . . . Knockbacks . | . . . Impact . | . . . Kinetic . | . . . Secondary . | . . . Self-Inflicted Damage 130 | . 130 . Shots 3 | . 3 . Rammed 1 | . 1 . Targets Rammed 3 | . 3 . Kicked 1 | . 1 . Crushed 1 | . 1 . Highest Temperature 264 | . 264 63 Average Temperature 68 | . 70 36 Received Heat Transfer 531 | . 417 114 Siege Activations . | . . . Robots Corrupted . | . . . Combat Hostiles . | . . . Parts Fried . | . . . Impact Corruptions . | . . . Robots Melted . | . . . Combat Hostiles . | . . . Parts Melted . | . . . Heat Transferred 1132 | . 971 161 Parts Sabotaged . | . . . Parts Stolen . | . . . Parts Stripped . | . . . Power Chain Reactions 1 | . 1 . Alert | -11 -10 -9 ------- Run | Yrd Mat Mat Peak Influence 209 | . 209 165 Initial 33 | . . 33 Average 70 | . 77 81 Maximum Alert Level 1 | . 1 . Low Security (%) 92 | 100 90 100 Level 1 7 | . 9 . Level 2 . | . . . Level 3 . | . . . Level 4 . | . . . Level 5 . | . . . High Security . | . . . Max Security . | . . . Squads Dispatched 3 | . 2 1 Investigation . | . . . Extermination . | . . . Reinforcement 3 | . 2 1 Assault . | . . . Garrison . | . . . Intercept . | . . . Searches Triggered . | . . . Construction Impeded . | . . . Haulers Reinforced . | . . . Active Scanning Responses . | . . . Cargo Convoy Interrupts . | . . . Stealth | -11 -10 -9 --------- Run | Yrd Mat Mat Distress Signals 3 | . 1 2 Communications Jammed . | . . . Distress Signals . | . . . Times Spotted 31 | . 19 12 Peak Tracking Total 8 | . 4 8 Tactical Retreats 1 | . 1 . Traps | -11 -10 -9 ------- Run | Yrd Mat Mat Traps Triggered 2 | . 2 . Indirectly . | . . . Trap Hack Attempts . | . . . Triggered . | . . . Disarmed . | . . . Reprogrammed . | . . . Reused . | . . . Traps Extracted . | . . . Installed . | . . . Triggered . | . . . Machines | -11 -10 -9 ---------- Run | Yrd Mat Mat Machines Disabled 3 | . 2 1 Max in Single Turn 2 | . 2 1 Machines Repaired . | . . . Machines Dismantled . | . . . Machines Sabotaged . | . . . Overloaded Fab Kills . | . . . Hacking | -11 -10 -9 --------- Run | Yrd Mat Mat Machines Accessed 2 | . 2 . Terminals . | . . . Fabricators . | . . . Repair Stations 1 | . 1 . Recycling Units 1 | . 1 . Scanalyzers . | . . . Garrison Access . | . . . Total Hacks 3 | . 3 . Successful 3 | . 3 . Failed . | . . . Catastrophic . | . . . Database Lockouts . | . . . Manual . | . . . Terminals . | . . . Fabricators . | . . . Repair Stations 2 | . 2 . Recycling Units 1 | . 1 . Scanalyzers . | . . . Garrison Access . | . . . Terminal Hacks . | . . . Fabricator Hacks . | . . . Repair Station Hacks 2 | . 2 . Scan Component 1 | . 1 . Repair 1 | . 1 . Recycling Unit Hacks 1 | . 1 . Report Inventory 1 | . 1 . Scanalyzer . | . . . Garrison Access Hacks . | . . . Unauthorized Hacks . | . . . Terminals . | . . . Fabricators . | . . . Repair Stations . | . . . Recycling Units . | . . . Scanalyzers . | . . . Garrison Access . | . . . Data Cores Recovered . | . . . Used . | . . . Hacking Detections 1 | . 1 . Full Trace Events . | . . . Feedback Events . | . . . Feedback Blocked . | . . . Robot Schematics Acquired . | . . . Robots Built . | . . . Authchips . | . . . Time . | . . . Total Robot Build Rating . | . . . Part Schematics Acquired . | . . . Parts Built . | . . . Authchips . | . . . Time . | . . . Total Part Build Rating . | . . . Parts Repaired 1 | . 1 . Time 26 | . 26 . Parts Recycled . | . . . Recycled Matter . | . . . Retrieved Matter . | . . . Retrieved Components . | . . . Parts Scanalyzed . | . . . Part Schematics Acquired . | . . . Parts Damaged . | . . . Bothacking | -11 -10 -9 ------------ Run | Yrd Mat Mat Used RIF Installer . | . . . Robots Hacked 3 | . 3 . Non-combat 1 | . 1 . Combat 2 | . 2 . Robot Hacks Applied 4 | . 4 . parse_system 2 | . 2 . no_distress 1 | . 1 . check_alert 1 | . 1 . Relay Couplers Released . | . . . Fabnet Peak Effective % . | . . . Robots Rewired . | . . . Allies Hacked . | . . . Hacks Repelled . | . . . Allies | -11 -10 -9 -------- Run | Yrd Mat Mat Total Allies . | . . . Largest Group . | . . . Highest-Rated Group . | . . . Highest-Rated Ally . | . . . Total Orders . | . . . Ally Attacks . | . . . Total Damage . | . . . Kills . | . . . Allies Corrupted . | . . . Allies Melted . | . . . Intel | -11 -10 -9 ------- Run | Yrd Mat Mat Robot Analysis Total . | . . . Derelict Logs Recovered . | . . . Drone Launches . | . . . Drone Recoveries . | . . . Exploration | -11 -10 -9 ------------- Run | Yrd Mat Mat Turns Passed 1262 | 118 1021 123 Spaces Moved 641 | 71 518 52 Core 56 | 6 50 . Treads 317 | 65 252 . Legs 268 | . 216 52 Wheels . | . . . Hover . | . . . Flight . | . . . Fastest Speed 50 | 50 120 190 Average Speed 159 | 150 157 190 Slowest Speed 250 | 160 250 190 Overloaded Moves . | . . . Propulsion Burnouts . | . . . Robots Hopped . | . . . Cave-ins Triggered 2 | . 2 . Exploration Rate (%) 24 | 5 59 10 Regions Visited 2 Branch Regions . Pre-discovered Areas . | . . . Known Exits Taken . | . . . Unknown Exits Taken 2 | 1 1 . Scrap Searched . | . . . Spaces Dug . | . . . Terrain Destroyed 119 | . 80 39 Melee . | . . . Projectile . | . . . AOE 119 | . 80 39 Terrain Rammed . | . . . Walls Destroyed . | . . . Machines Disabled . | . . . Actions | -11 -10 -9 --------- Run | Yrd Mat Mat Total 761 | 80 616 65 Wait . | . . . Move 637 | 70 515 52 Hop . | . . . Pick Up 17 | 5 11 1 Fast Attach 11 | 5 5 1 Attach 10 | . 9 1 Detach . | . . . Swap 11 | . 8 3 Drop 2 | . 1 1 Fire 60 | . 54 6 Melee 8 | . 8 . Ram . | . . . Kick 1 | . 1 . Crush 2 | . 2 . Escape Stasis 2 | . 2 . Rewire . | . . . Trap . | . . . Miscellaneous . | . . . Route ------- -11/Scrapyard -10/Materials (discovered 2 exits: [*Mat] / [*Min]) -9/Materials History --------- Turn | Location | Event 4 | -11/Scrapyard | Discovered new exit (range 16) 119 | -11/Scrapyard | Entered Materials 308 | -10/Materials | Build established: Mutant 567 | -10/Materials | Discovered new exit (range 16) 725 | -10/Materials | Crushed by falling debris 726 | -10/Materials | Core integrity fell below 50% 726 | -10/Materials | System corruption reached 10% 727 | -10/Materials | Crushed by falling debris 756 | -10/Materials | Lost 3 parts (1p1u1w) 906 | -10/Materials | Repaired Aluminum Leg? 963 | -10/Materials | Discovered new exit (range 16) 988 | -10/Materials | Core integrity fell below 20% 1140 | -10/Materials | Entered another Materials area 1140 | -9/Materials | Evolved 2 slots: Power x1, Propulsion x1 1263 | -9/Materials | Self-destructed Last Messages --------------- TERMINAL." O-16 Technician uses terminal to summon reinforcements. ALERT: Hostiles spotted, dispatching reinforcements to Terminal M002. O-16 Technician locks terminal. Dropped Grenade Launcher. Acquired Grenade Launcher. Lgt. Ion Engine destroyed. G-34 Mercenary destroyed. G-47 Trooper destroyed. G-34 Mercenary destroyed. R-06 Scavenger collects Aluminum Leg. The unstable cave ceiling collapses. R-06 Scavenger collects Particle Gun. Grenade Launcher destroyed. The unstable cave ceiling collapses. Acquired Imp. Aluminum Leg. S-10 Pest destroyed. S-10 Pest suffers critical hit (Burn). Map ----- +----------------------------------------------------+ | ?????????????????????????????????? | | ?????????????????????????????????? | | ?????????????????????????????????? | | ?????????????????????????????????? | | ?????????????????????????????????? | | ?????????????????????????????????? | | ?????????????????????????????????? | | ?????????????????????????????????? | | ?????????????????????????????????? | | ?????????????????????????????????? | | ?????????????????????????????????? | | ???????????? ??????????????????? | | ???????????? +?????????????????? | | ???????????? #? ?????????????? | | ???????????? #? ???????????? | | ???????????? # ???????????? | | ???????????? # ???????????? | | ???????????? # ????????????? | | ???????????# ######????????? | | ??????????? ???????? | | ???????????#^ ???????? | | ???????????# % ????????? | | ??????????? % # # #?????????? | | ????####### [ ##????????? | | ????# s# g #????????? | | ????# % @s[%* #????????? | | ????# s g #????????? | | ????# # #?????????? | | ????# # #?????????? | | ????# # # #?????????? | | ????######## ## ## ###?????????? | | ???????????# #??#??????????????? | | ???????????# #?????????????????? | | ???????????# #?????????????????? | | ???????????# #?????????????????? | | ????######## #?????????????????? | | ????# # #?????????????????? | | ????# """ # #?????????????????? | | ????# """ # #?????????????????? | | ????# """ # #?????????????????? | | ????# + #?????????????????? | | ????# # #?????????????????? | | ??########## #?????????????????? | | ??# !# #?????????????????? | | ??# "T" # #?????????????????? | | ??# # #?????????????????? | | ??# # #?????????????????? | | ??# +] #?????????????????? | | ??# """"" # #?????????????????? | | ??# """"" # #?????????????????? | +----------------------------------------------------+ Best States ------------- Heat Dissipation 28 Energy Generation 15 Energy Capacity 150 Matter Stores 500 Matter Capacity 500 Sight Range 16 Terrain Scan Density 10 Utility Shielding 33 Evasion (%) 55 Recoil Reduction 2 Item Schematics ----------------- None Robot Schematics ------------------ None Fabricated ------------ Nothing Alien Tech Used ----------------- None Achievements -------------- System Compromised Unlikely Earthworm Challenges ------------ None Game ------ Seed CouplerDroneCutter Manual? 0 Play Time 00:13:13 Cumulative 1.2 hours Start 2024.04.04 @ 14:44:03 End 2024.04.04 @ 15:13:52 Sessions 1 Manual Loads 0 Difficulty Rogue Special Mode None Game No. 4 Rogue 4 Adventurer 0 Explorer 0 Win Type - Total 0 Types 0/0/0/0/0/0/0/0/0 Lore% 1 Gallery% 5 Achievement% 5 Wizard Run 0 Options --------- Layout 1 ASCII 0 Keyboard 0 Movement Arrows Keybinds 0 Fullscreen 1 Font 24/Smallcaps Map View 50x35 Zoom Use 0% Tactical HUD 0 Map Filters NONE Filters NONE Steam 1 RUN: 8d3ac2bb-b574-4099-b242-be6e91a6b856